Cogmind - Beta 10.1 @@@ ROGUE MODE // 2020.10.13 @ 23:57:32 Player: Andru7428 Result: Destroyed by as-65041 with Assembled Rifle Performance ------------- Evolutions (0) 0 Regions Visited (2) 400 Robots Destroyed (19) 95 Value Destroyed (572) 572 Prototype IDs (0) 0 Alien Tech Used (0) 0 Bonus (0) 0 TOTAL SCORE: 1067 Bonus ------- None Cogmind --------- Core Integrity 0/250 Matter 290/300 Energy 100/100 System Corruption 0% Temperature Cool (0) Movement Walking (150) Ox1 Location -10/Mines Parts ------- > --- POWER (1) -------- (None) > --- PROPULSION (2) --- Aluminum Leg Aluminum Leg > --- UTILITY (2) ------ Large Storage Unit Large Storage Unit > --- WEAPON (2) ------- EM Pulse Gun > --- INVENTORY (16) --- Light Treads Aluminum Leg Aluminum Leg Aluminum Leg Aluminum Leg Improved Heat Sink Improved Heat Sink EM Pulse Gun Assault Rifle Light Cannon Mining Claw Peak State ------------ > --- POWER ------------ Ion Engine > --- PROPULSION ------- Light Treads Aluminum Leg > --- UTILITY ---------- Large Storage Unit Large Storage Unit > --- WEAPON ----------- Assault Rifle Assault Rifle > --- INVENTORY -------- Ion Engine Light Treads Aluminum Leg Aluminum Leg Aluminum Leg Aluminum Leg EM Pulse Gun EM Pulse Gun Light Cannon Grenade Launcher [Rating: 8] Favorites ----------- Power Ion Engine Engine Ion Engine Propulsion Light Treads Treads Light Treads Leg Aluminum Leg Utility Large Storage Unit Storage Large Storage Unit Processor Targeting Computer Weapon Assault Rifle Energy Gun EM Pulse Gun Ballistic Gun Assault Rifle Launcher Grenade Launcher Build | -11 -10 -10 ------- Run | Scr Mat Min Slots Evolved . | . . . Power . | . . . Propulsion . | . . . Utility . | . . . Weapon . | . . . Parts Attached 30 | 6 17 7 Power 4 | 1 2 1 Engine 4 | 1 2 1 Core . | . . . Reactor . | . . . Propulsion 10 | 2 4 4 Treads 6 | 2 3 1 Leg 4 | . 1 3 Wheel . | . . . Hover . | . . . Flight . | . . . Utility 5 | 1 4 . Device . | . . . Storage 4 | 1 3 . Processor 1 | . 1 . Hackware . | . . . Protection . | . . . Artifact . | . . . Weapon 11 | 2 7 2 Energy Gun 1 | . . 1 Energy Cannon . | . . . Ballistic Gun 7 | 2 5 . Ballistic Cannon . | . . . Launcher 3 | . 2 1 Special Weapon . | . . . Impact Weapon . | . . . Slashing Weapon . | . . . Piercing Weapon . | . . . Special Melee Weapon . | . . . Unidentified Prototypes . | . . . Parts Lost 8 | . 2 6 Power 2 | . . 2 Propulsion 3 | . 1 2 Utility . | . . . Weapon 3 | . 1 2 Highest Loss Streak 2 | . 1 2 Average Slot Usage (%) 99 | . 99 98 Engine 14 | . 14 14 Treads 16 | . 16 14 Leg 11 | . 11 13 Storage 26 | . 26 28 Energy Gun 2 | . . 7 Ballistic Gun 25 | . 27 19 Naked Turns . | . . . Heaviest Build 42 | 11 42 42 Greatest Support 40 | 40 40 40 Greatest Overweight (x) 2 | 2 2 2 Average Overweight (x) 1 | . 1 1 Largest Inventory Capacity 16 | 6 16 16 Average Capacity 14 | 5 14 16 Most Carried 13 | 5 10 13 Average Carried 7 | 3 5 11 Final Capacity 16 | 6 16 16 Final Carried 11 | 4 10 11 Class Distribution -------------------- 100% | Mutant Dominant Class ---------------- Mutant | -10/Materials Mutant | -10/Mines Resources | -11 -10 -10 ----------- Run | Scr Mat Min Matter Collected 846 | 169 560 117 Remotely . | . . . Salvage Created 738 | . 530 208 Parts 37 | . 28 9 Haulers Intercepted 1 | . 1 . Recyclers Shooed 1 | . 1 . Parts Field Recycled . | . . . Retrieved Matter . | . . . Parts Self-Destructed . | . . . Prevented . | . . . Kills | -11 -10 -10 ------- Run | Scr Mat Min Combat Hostiles Destroyed 16 | . 12 4 Guns 11 | . 7 4 AOE 5 | . 5 . Classes Destroyed 5 | . 5 . Tunneler 1 | . 1 . Hauler 1 | . 1 . Recycler 1 | . 1 . Swarmer 3 | . 3 . Grunt 13 | . 9 4 Best Kill Streak 5 | . 5 2 Combat Bots Only 4 | . 4 2 Max Kills in Single Turn 3 | . 3 1 Gunslinging . | . . . Exploded 3 | . 3 . Melee . | . . . Uniques/NPCs Destroyed . | . . . Combat | -11 -10 -10 -------- Run | Scr Mat Min Damage Taken 1440 | . 572 868 Core 264 | . 92 172 Absorbed by Shields . | . . . Core Remaining (%) 100 | 100 . . Volleys Fired 66 | . 47 19 Largest 2 | . 2 2 Hottest 60 | . 50 60 Shots Fired 127 | . 89 38 Gun 121 | . 83 38 Cannon . | . . . Launcher 6 | . 6 . Special . | . . . Kinetic 112 | . 83 29 Thermal . | . . . Explosive 6 | . 6 . Electromagnetic 9 | . . 9 Robot Hit Streak 11 | . 11 5 Robot Miss Streak 2 | . 2 2 Penetration Max . | . . . Secondary Targets 2 | . 1 1 Max Gunslinging Chain 1 | . 1 1 Shots Hit Robots 83 | . 57 26 Core Hits 34 | . 26 8 Critical Hits 1 | . . 1 Critical Kills 1 | . . 1 Critical Parts Destroyed . | . . . Melee Attacks . | . . . Impact . | . . . Slashing . | . . . Piercing . | . . . Sneak Attacks . | . . . Combat Hostiles . | . . . Follow-up Attacks . | . . . Damage Inflicted 1244 | . 965 279 Guns 957 | . 678 279 Cannons . | . . . Explosions 287 | . 287 . Melee . | . . . Ramming . | . . . Kinetic 887 | . 678 209 Thermal . | . . . Explosive 287 | . 287 . Electromagnetic 70 | . . 70 Impact . | . . . Slashing . | . . . Piercing . | . . . Highest Corruption . | . . . Average Corruption . | . . . Corruption Purged . | . . . Overload Shots . | . . . Overflow Damage 2 | . 2 . Projectiles . | . . . Explosions 2 | . 2 . Melee . | . . . Knockbacks . | . . . Impact . | . . . Kinetic . | . . . Secondary . | . . . Self-Inflicted Damage 10 | . 10 . Shots 1 | . 1 . Rammed . | . . . Targets Rammed . | . . . Kicked . | . . . Crushed . | . . . Highest Temperature 82 | . 4 82 Average Temperature 24 | . 2 34 Received Heat Transfer 580 | . 291 289 Siege Activations . | . . . Robots Corrupted . | . . . Combat Hostiles . | . . . Parts Fried . | . . . Impact Corruptions . | . . . Robots Melted . | . . . Combat Hostiles . | . . . Parts Melted . | . . . Heat Transferred . | . . . Parts Sabotaged . | . . . Parts Stolen . | . . . Parts Stripped . | . . . Power Chain Reactions . | . . . Missiles Intercepted . | . . . Alert | -11 -10 -10 ------- Run | Scr Mat Min Peak Influence 171 | . 171 132 Initial 22 | . . 22 Average 43 | . 45 43 Maximum Alert Level . | . . . Low Security (%) 100 | 100 100 100 Level 1 . | . . . Level 2 . | . . . Level 3 . | . . . Level 4 . | . . . Level 5 . | . . . High Security . | . . . Max Security . | . . . Squads Dispatched 1 | . 1 . Investigation . | . . . Extermination . | . . . Reinforcement 1 | . 1 . Assault . | . . . Garrison . | . . . Intercept . | . . . Construction Impeded . | . . . Haulers Reinforced . | . . . Stealth | -11 -10 -10 --------- Run | Scr Mat Min Distress Signals 3 | . 3 . Communications Jammed . | . . . Distress Signals . | . . . Times Spotted 52 | . 23 29 Peak Tracking Total 20 | . 6 20 Tactical Retreats 6 | . 3 3 Traps | -11 -10 -10 ------- Run | Scr Mat Min Traps Triggered 3 | . 3 . Indirectly . | . . . Trap Hack Attempts . | . . . Triggered . | . . . Disarmed . | . . . Reprogrammed . | . . . Reused . | . . . Traps Extracted . | . . . Installed . | . . . Triggered . | . . . Machines | -11 -10 -10 ---------- Run | Scr Mat Min Machines Disabled 2 | . . 2 Max in Single Turn 1 | . . 1 Machines Sabotaged . | . . . Garrisons Compromised . | . . . Overloaded Fab Kills . | . . . Fab Network Shutdowns . | . . . Hacking | -11 -10 -10 --------- Run | Scr Mat Min Machines Accessed 3 | . 3 . Terminals 3 | . 3 . Fabricators . | . . . Repair Stations . | . . . Recycling Units . | . . . Scanalyzers . | . . . Garrison Access . | . . . Total Hacks 12 | . 12 . Successful 8 | . 8 . Failed 4 | . 4 . Catastrophic . | . . . Database Lockouts . | . . . Manual 8 | . 8 . Terminals 12 | . 12 . Fabricators . | . . . Repair Stations . | . . . Recycling Units . | . . . Scanalyzers . | . . . Garrison Access . | . . . Terminal Hacks 5 | . 5 . Robot Analysis 3 | . 3 . Unreport Threat 1 | . 1 . Locate Traps 1 | . 1 . Fabricator Hacks . | . . . Repair Station Hacks . | . . . Recycling Unit Hacks . | . . . Scanalyzer . | . . . Garrison Access Hacks . | . . . Unauthorized Hacks 3 | . 3 . Terminals 3 | . 3 . Track 3 | . 3 . Fabricators . | . . . Repair Stations . | . . . Recycling Units . | . . . Scanalyzers . | . . . Garrison Access . | . . . Data Cores Recovered . | . . . Used . | . . . Hacking Detections 3 | . 3 . Full Trace Events 1 | . 1 . Feedback Events . | . . . Feedback Blocked . | . . . Robot Schematics Acquired . | . . . Robots Built . | . . . Matter . | . . . Time . | . . . Total Robot Build Rating . | . . . Part Schematics Acquired . | . . . Parts Built . | . . . Matter . | . . . Time . | . . . Total Part Build Rating . | . . . Parts Repaired . | . . . Time . | . . . Parts Recycled . | . . . Recycled Matter . | . . . Retrieved Matter . | . . . Retrieved Components . | . . . Parts Scanalyzed . | . . . Part Schematics Acquired . | . . . Parts Damaged . | . . . Bothacking | -11 -10 -10 ------------ Run | Scr Mat Min Used RIF Installer . | . . . Robots Hacked . | . . . Non-combat . | . . . Combat . | . . . Robot Hacks Applied . | . . . Relay Couplers Released . | . . . Robots Rewired . | . . . Allies Hacked . | . . . Hacks Repelled . | . . . Allies | -11 -10 -10 -------- Run | Scr Mat Min Total Allies 3 | . . 3 Largest Group 3 | . . 3 Highest-Rated Group 40 | . . 40 Highest-Rated Ally 16 | . . 16 Total Orders . | . . . Ally Attacks 6 | . . 6 Total Damage 72 | . . 72 Kills 1 | . . 1 Allies Corrupted . | . . . Allies Melted . | . . . Intel | -11 -10 -10 ------- Run | Scr Mat Min Robot Analysis Total 3 | . 3 . Derelict Logs Recovered 1 | . . 1 Drone Launches . | . . . Drone Recoveries . | . . . Exploration | -11 -10 -10 ------------- Run | Scr Mat Min Turns Passed 1893 | 90 1243 560 Spaces Moved 873 | 55 544 274 Core 15 | 15 . . Treads 715 | 40 544 131 Legs 143 | . . 143 Wheels . | . . . Hover . | . . . Flight . | . . . Fastest Speed 50 | 50 160 150 Average Speed 183 | 137 190 177 Slowest Speed 200 | 160 200 200 Overloaded Moves . | . . . Propulsion Burnouts . | . . . Robots Hopped . | . . . Cave-ins Triggered . | . . . Exploration Rate (%) 47 | 4 85 53 Regions Visited 2 Branch Regions 1 Pre-discovered Areas . | . . . Known Exits Taken . | . . . Unknown Exits Taken 2 | 1 1 . Scrap Searched 1 | . . 1 Spaces Dug . | . . . Terrain Destroyed 28 | . 28 . Melee . | . . . Projectile . | . . . AOE 28 | . 28 . Terrain Rammed . | . . . Walls Destroyed . | . . . Machines Disabled . | . . . Actions | -11 -10 -10 --------- Run | Scr Mat Min Total 1034 | 68 656 310 Wait 42 | . 38 4 Move 871 | 54 543 274 Hop . | . . . Pick Up 19 | 6 8 5 Fast Attach 14 | 6 8 . Attach 7 | . 2 5 Detach 2 | . 1 1 Swap 9 | . 7 2 Drop 4 | 2 2 . Fire 66 | . 47 19 Melee . | . . . Ram . | . . . Kick . | . . . Crush . | . . . Escape Stasis . | . . . Rewire . | . . . Trap . | . . . Miscellaneous . | . . . Route ------- -11/Scrapyard -10/Materials (discovered 4 exits: [*Mat x2] / [*Min x2]) -10/Mines (discovered 1 exit: [*Mat]) History --------- Turn | Location | Event 14 | -11/Scrapyard | Discovered new exit (range 15) 91 | -11/Scrapyard | Entered Materials 306 | -10/Materials | Build established: Mutant 668 | -10/Materials | Discovered new exit (range 8) 842 | -10/Materials | Discovered new exit (range 2) 1019 | -10/Materials | Discovered new exit (range 3) 1320 | -10/Materials | Discovered new exit (range 8) 1334 | -10/Materials | Entered Mines 1478 | -10/Mines | Learned Materials stockpile data 1558 | -10/Mines | Core integrity fell below 50% 1663 | -10/Mines | Discovered new exit (range 3) 1686 | -10/Mines | Assisted by bots powering up and referring to "LRC-V3" 1821 | -10/Mines | Assembled infested the area 1845 | -10/Mines | Core integrity fell below 20% 1894 | -10/Mines | Destroyed by as-65041 with Assembled Rifle Last Messages --------------- 01844_ R-06 Scavenger destroyed. 01847_ Grenade Launcher destroyed. 01851_ The unstable cave ceiling collapses. 01851_ U-05 Engineer lays Concrete. 01852_ D-53 Grenadier destroyed. 01853_ U-05 Engineer lays Concrete. 01854_ D-53 Grenadier destroyed. 01854_ U-05 Engineer lays Concrete. 01855_ as-31158 sneak attacks. 01856_ U-05 Engineer destroyed. 01859_ as-31158 sneak attacks. 01861_ The unstable cave ceiling collapses. 01869_ T-07 Excavator destroyed. 01877_ as-24245 sneak attacks. 01878_ R-06 Scavenger collects Wheel. 01881_ R-06 Scavenger collects Welding Torch. 01885_ R-06 Scavenger collects Structural Scanner. 01889_ Aluminum Leg destroyed. 01889_ R-06 Scavenger destroyed. 01894_ Ion Engine destroyed. Map ----- +----------------------------------------------------+ | ?????????????????????????? ???????? ???????????? | | ?????????????????????????# ???????# ???????????? | | ?????????????????????????#*???????# ???????????? | | ?????????????????????????#$#??????# #???????????? | | ?????????????????????????[%#??????# #???????????? | | ?????????????????????????#$#??????# #???????????? | | ???????????????## ???????#=#??????# #???????????? | | ??????????????## #??????#%#??????# #???????????? | | ??????????????# #?????#!#??????# #???????????? | | ??????????????# ######=##?????# #????????#### | | ??????????????# ##%[%##????# #???????## # | | ???????????????# [== ###### #??????## | | ?????????#####?### * ## # #?????## | | ?????????# ##??#### #?????# | | ?????????# ##????### %= # # #????## | | ?????????## #??????## = ###### | | ??????????# #???????##%%%! | | ??????????# ##???????##*!= a # ## #### # | | ??????????## #####???##!! a ## #??## ## | | ???????????## #??## %= # ## ###?# ## | | ????????????## #### ######= ### # | | ?????????????# ###%%* ##???#=% ### | | ?????????????# ##!=|! ####### #?## | | ?????????????# ! a a!a ### #??## | | ?????????????## aaaa a!a ### ##??# | | ??????????????# % @ a####### #??# | | ??????????????# %%% ##?????# ### #??# | | ??????????????# ### ##??????# #?## #??## | | ??????????????# #?## ##???????# #??## ##???## | | ??????????????# #??## ##????????# #???####?????# | | ??????????????# #???####?????????# #???????????## | | ??????????????# #????????????????# #???????##### | | ??????????##### !####?????????????# ######### | | ??????##### % #?????????????# " | | ####### #?????????????########## " | | ## "" "" #??????????????????????## " | | < ## ### """ "" #???????????????????????### | | ## #?# """ """ #?????????????????????????## | | #?# #?????????????????????????## | | ####?###########?????????????????????????# | | #????????????????????????????????????????# | | #????????????????????????????????????????# | | #????????????????????????????????????????# | | #????????????????????????????????????????## | | ######?????????????????????????????????????????## | | ????????????????????????????????????????????????## | | ?????????????????????????????????????????????????? | | | | | | | +----------------------------------------------------+ Best States ------------- Heat Dissipation 25 Energy Generation 10 Energy Capacity 250 Matter Stores 300 Matter Capacity 300 Sight Range 16 Terrain Scan Density 10 Evasion (%) 50 Targeting Accuracy 5 Recoil Reduction 2 Item Schematics ----------------- None Robot Schematics ------------------ None Fabricated ------------ Nothing Alien Tech Used ----------------- None Achievements -------------- None Challenges ------------ None Game ------ Seed StructuralLauncherChip Manual? 0 Play Time 00:12:53 Cumulative 82.2 hours Start 2020.10.13 @ 23:46:33 End 2020.10.13 @ 23:57:32 Sessions 1 Manual Loads 0 Difficulty Rogue Special Mode None Game No. 69 Rogue 69 Adventurer 0 Explorer 0 Win Type - Total 0 Types 0/0/0/0/0/0/0/0/0 Lore% 51 Gallery% 58 Achievement% 45 Wizard Run 0 Options --------- ASCII 0 Keyboard 1 Movement Numpad Keybinds 0 Fullscreen 1 Font 12/Smallcaps Map View 83x54 Tactical HUD 1 Map Filters NONE Filters NONE Steam 1 RUN: 9cae69b5-15c8-4ec0-8242-dcc1e6610773